bitfinex/quotes_ETHUSD_20251201
["timestamp","ask_amount","ask_price","bid_price","bid_amount"]
[1764566388321,0.57935594,2815.3,2815.0,0.2714]
[1764566388517,0.57935594,2815.3,2815.2,0.2714]
[1764566388884,0.57935594,2815.3,2815.2,0.5428]
[1764566390591,4.13137526,2815.3,2815.2,0.5428]
[1764566391015,0.35335594,2815.0,2814.9,0.0838]
[1764566391489,0.4544,2815.0,2814.3,0.2714]
[1764566391693,0.35335594,2814.4,2814.3,0.2714]
[1764566392007,0.57935594,2814.4,2814.3,0.2714]
[1764566392421,0.35335594,2814.4,2814.3,0.5428]
[1764566392597,1.13109811,2815.1,2814.3,4.09605388]
[1764566392927,3.55217727,2815.2,2815.0,0.2714]
[1764566392928,0.72559411,2815.2,2815.0,0.2714]
[1764566393131,0.57935594,2815.1,2815.0,0.2714]
[1764566393630,0.57935594,2815.1,2815.0,0.5428]
[1764566395523,0.57935594,2815.1,2815.0,0.2714]
[1764566395724,4.13162761,2815.1,2814.9,0.001]
[1764566395956,4.13162761,2815.1,2815.0,0.2714]
[1764566396230,4.90000522,2815.1,2815.0,0.2714]
[1764566396834,4.13162761,2815.1,2815.0,0.2714]
[1764566397515,4.13162761,2815.1,2815.0,0.5428]
[1764566397516,0.57935594,2815.1,2815.0,0.5428]
[1764566397719,4.13162761,2815.1,2815.0,0.5428]
[1764566397918,0.57935594,2815.1,2815.0,0.5428]
[1764566401048,4.13162761,2815.1,2815.0,0.5428]
[1764566401342,0.57935594,2815.1,2815.0,0.5428]
[1764566401749,4.13162761,2815.1,2815.0,0.5428]
[1764566402097,0.226,2815.1,2815.0,0.5428]
[1764566402333,0.57935594,2815.1,2815.0,0.5428]
[1764566402539,0.35335594,2815.5,2815.0,4.09519786]
[1764566402713,0.35335594,2815.5,2814.9,3.55350703]
[1764566402714,0.35335594,2815.7,2815.6,0.3552]
[1764566402922,0.57935594,2815.7,2815.6,0.6266]
[1764566403606,0.62374987,2815.7,2815.6,0.6266]
[1764566404332,0.62374987,2815.7,2815.6,0.3552]
[1764566404528,0.57935594,2815.7,2815.6,0.3552]
[1764566404701,0.57935594,2815.7,2815.6,0.6266]
[1764566405331,0.04439235,2815.8,2815.6,0.6266]
[1764566405632,0.226,2815.7,2815.6,0.3552]
[1764566405944,0.57935594,2815.7,2815.6,0.6266]
[1764566406132,0.226,2815.7,2815.6,0.3552]
[1764566406340,0.57935594,2815.7,2815.6,0.3552]
[1764566407131,0.57935594,2815.7,2815.6,0.6266]
[1764566407335,0.35335594,2815.7,2815.6,0.6266]
[1764566407635,0.57835594,2815.7,2815.6,0.6266]
[1764566407839,0.04438447,2816.3,2815.6,8.14772825]
[1764566408049,3.90372425,2816.7,2816.6,0.2714]
[1764566408217,0.57935594,2816.7,2816.6,0.6366]
[1764566408537,0.57935594,2816.7,2816.6,0.3652]
[1764566409038,4.12960978,2816.7,2816.6,0.3652]
[1764566409740,0.57935594,2816.7,2816.6,0.3652]
[1764566409919,0.57935594,2816.7,2816.6,0.6366]
[1764566410442,3.55002531,2816.9,2816.6,4.18697989]
[1764566410443,0.35335594,2816.9,2816.6,4.18697989]
[1764566410741,0.57835594,2817.0,2816.8,0.2714]
[1764566411114,3.9027277,2817.4,2817.3,0.0938]
[1764566411438,4.85332181,2817.4,2817.3,0.3652]
[1764566411836,4.85332181,2817.4,2816.6,0.0938]
[1764566411837,0.35335594,2816.7,2816.6,0.0938]
[1764566412038,0.57835594,2816.7,2816.6,0.0938]
[1764566412224,0.57835594,2816.7,2816.6,0.3652]
[1764566412920,0.225,2816.7,2816.4,0.2714]
[1764566413123,0.35335594,2816.5,2816.4,0.2714]
[1764566413740,4.79787549,2816.5,2815.6,0.77304655]
[1764566413925,0.0443829,2816.4,2815.6,0.0838]
[1764566414255,0.0443829,2816.4,2815.7,0.01793341]
[1764566414256,0.35335594,2815.8,2815.7,0.01793341]
[1764566414551,0.35335594,2815.8,2815.6,0.3552]
[1764566414721,0.35335594,2815.8,2815.7,0.5428]
[1764566415045,0.225,2815.9,2815.7,0.2714]
[1764566415349,0.225,2815.9,2815.8,0.2714]
[1764566415729,0.225,2816.2,2815.8,0.96062318]
[1764566415930,0.225,2816.2,2816.1,0.2714]
[1764566417418,0.57835594,2816.2,2816.1,0.2714]
[1764566418472,0.225,2816.2,2816.1,0.5428]
[1764566418842,0.225,2816.2,2816.1,4.09381026]
[1764566419148,0.225,2816.2,2816.1,4.58691629]
[1764566419330,0.225,2816.2,2816.1,4.09381026]
[1764566420139,0.57835594,2816.2,2816.1,4.09381026]
[1764566420427,0.225,2816.2,2816.1,4.09381026]
[1764566421060,0.225,2816.2,2816.1,4.11173736]
[1764566421353,0.225,2816.2,2816.1,4.09381026]
[1764566421531,0.225,2816.2,2816.1,4.50319129]
[1764566422854,0.225,2816.2,2816.1,0.95218103]
[1764566423151,0.225,2816.2,2816.1,0.68078103]
[1764566423456,0.225,2816.2,2816.1,0.2714]
[1764566423657,0.57835594,2816.2,2816.1,0.2714]
[1764566427233,0.57835594,2816.2,2816.1,0.2714]
[1764566429161,0.225,2816.2,2816.1,0.2714]
[1764566429330,0.225,2816.2,2816.1,0.68079079]
[1764566429747,0.225,2816.2,2816.1,4.23180105]
[1764566429941,0.225,2816.2,2816.1,0.95219079]
[1764566430143,0.225,2816.2,2816.1,0.68079079]
[1764566430347,0.35335594,2816.0,2815.6,3.6354183]
[1764566430885,0.35335594,2816.0,2815.9,0.2714]
[1764566431246,0.4586,2816.0,2815.6,0.0838]
[1764566431447,0.35335594,2815.6,2815.5,0.001]
[1764566431689,0.225,2815.7,2815.5,0.001]
[1764566431988,0.81195594,2815.6,2815.5,0.001]
[1764566432145,1.29875594,2815.6,2815.5,0.001]
[1764566433269,0.81195594,2815.6,2815.5,0.001]
[1764566433795,4.85039679,2815.6,2815.5,0.001]
[1764566435548,0.57835594,2815.7,2815.5,0.2724]
[1764566435780,0.35335594,2815.6,2815.5,0.2724]
[1764566436081,0.57835594,2815.7,2815.6,0.2714]
[1764566437578,0.225,2815.7,2815.6,0.2714]
[1764566437790,0.04638605,2816.2,2815.6,4.20546686]
[1764566437958,0.002,2816.2,2816.1,0.2714]
[1764566438167,0.58035594,2816.2,2816.1,0.2714]
[1764566438469,0.58035594,2816.2,2815.7,0.2714]
[1764566438671,0.227,2816.2,2815.7,0.2714]
[1764566438848,0.35335594,2815.9,2815.8,0.42054669]
[1764566439256,0.35335594,2816.0,2815.8,0.42054669]
[1764566439484,0.35335594,2816.0,2815.8,0.2714]
[1764566439784,0.35335594,2816.0,2815.9,0.2714]
[1764566440082,3.82232733,2816.2,2815.9,0.2714]
[1764566440083,0.58035594,2816.2,2815.9,0.2714]
[1764566440273,0.58035594,2816.2,2815.6,3.82302195]
[1764566440454,0.35335594,2816.0,2815.6,3.82302195]
[1764566440655,0.35335594,2816.0,2815.7,0.38240219]
[1764566440855,0.35335594,2816.0,2815.9,0.2714]
[1764566442887,0.227,2816.2,2815.9,4.09396239]
[1764566443085,0.002,2816.2,2816.1,0.3552]
[1764566443285,0.002,2816.2,2816.1,1.39950249]
[1764566443790,0.002,2816.2,2816.1,4.95051275]
[1764566444494,0.002,2816.2,2816.1,13.07974814]
[1764566444785,0.002,2816.2,2816.1,3.73856199]
[1764566445392,0.002,2816.2,2816.1,3.55101026]
[1764566445587,0.002,2816.2,2816.1,4.26122426]
[1764566446791,0.002,2816.2,2816.1,12.39045965]
[1764566447092,0.002,2816.2,2816.1,16.24045963]
[1764566447759,0.002,2816.2,2816.1,8.11122424]
[1764566448691,0.002,2816.2,2816.1,16.24045963]
[1764566449462,0.002,2816.2,2816.1,16.96605374]
[1764566456492,0.002,2816.2,2816.1,22.08817409]
[1764566457302,0.002,2816.2,2816.1,15.46249622]
[1764566457503,0.002,2816.2,2816.1,3.55101026]
[1764566457704,0.4739,2816.2,2815.9,10.1768806]
[1764566458077,0.4739,2816.2,2815.9,13.72814307]
[1764566458279,0.9736,2816.2,2815.9,10.1768806]
[1764566458472,0.9736,2816.2,2815.9,3.55120273]
[1764566459391,0.9736,2816.2,2815.9,7.1024652]
[1764566459975,0.35335594,2816.1,2815.9,7.1024652]
[1764566460177,0.35335594,2816.1,2815.9,3.55120273]
[1764566460378,0.82525594,2816.0,2815.8,3.55135799]
[1764566460691,0.002,2816.2,2815.8,7.84288238]
[1764566461076,0.002,2816.2,2815.8,15.96762566]
[1764566462504,0.002,2816.2,2815.8,19.51901425]
[1764566462692,0.002,2816.2,2815.8,23.36901423]
[1764566463308,0.002,2816.2,2815.9,0.72559411]
[1764566463532,0.002,2816.2,2816.0,2.05432197]
[1764566464207,0.002,2816.2,2816.1,3.55101026]
[1764566465108,0.002,2816.2,2816.1,12.40134765]
[1764566465700,0.002,2816.2,2816.1,16.25134763]
[1764566466494,0.002,2816.2,2816.1,16.95220283]
[1764566466703,0.002,2816.2,2816.1,18.65490496]
[1764566467486,0.002,2816.2,2816.1,9.82930648]
[1764566467701,0.002,2816.2,2816.1,10.05430648]
[1764566468991,0.002,2816.2,2816.1,18.87990496]
[1764566469190,0.002,2816.2,2816.1,18.65490496]
[1764566469396,0.002,2816.2,2816.1,19.28540896]
[1764566471799,0.002,2816.2,2816.1,19.06040896]
[1764566471998,0.002,2816.2,2816.1,18.87990496]
[1764566472323,0.002,2816.2,2816.1,18.65490496]
[1764566472523,0.002,2816.2,2816.1,18.87990496]
[1764566474932,0.002,2817.5,2816.2,1.13109811]
[1764566475119,0.002,2817.5,2816.9,0.72559411]
[1764566475319,0.002,2817.5,2817.1,0.72559411]
[1764566475721,0.002,2817.5,2817.3,8.82559848]
[1764566476106,0.002,2817.5,2817.4,0.72559411]
[1764566476307,0.002,2817.5,2817.4,1.70321337]
[1764566477440,0.002,2817.5,2817.4,5.25258513]
[1764566479847,0.002,2817.8,2817.5,0.405504]
[1764566480056,0.002,2817.8,2817.4,8.80195689]
[1764566480251,0.002,2817.8,2817.5,0.225]
[1764566480540,0.002,2817.8,2817.6,0.90269569]
[1764566480908,0.4739,2817.7,2817.6,0.90269569]
[1764566481428,0.002,2817.7,2817.6,0.90269569]
[1764566481806,0.002,2817.7,2817.6,5.17740961]
[1764566482635,0.4739,2817.7,2817.6,1.64616964]
[1764566482844,0.9264,2817.7,2817.6,0.72559411]
[1764566483028,0.9264,2817.7,2817.6,4.27471392]
[1764566483624,0.9264,2817.7,2817.6,3.54911981]
[1764566484034,0.9264,2817.7,2817.3,7.82455027]
[1764566484341,0.9243,2817.6,2817.3,7.82455027]
[1764566484539,0.4525,2817.6,2817.3,7.82455027]
[1764566484712,0.4718,2817.4,2817.3,4.27505253]
[1764566485315,0.4718,2817.4,2817.1,3.54965797]
[1764566485515,0.4718,2817.2,2817.1,3.54965797]
[1764566485735,0.4718,2817.2,2817.1,4.27525208]
[1764566485947,0.002,2817.7,2817.2,0.72559411]
[1764566486122,0.4525,2817.5,2817.3,3.54949774]
[1764566486325,0.4525,2817.6,2817.3,3.54949774]
[1764566486543,0.4718,2817.4,2817.3,3.54949774]
[1764566486744,0.002,2817.7,2817.3,7.09899548]
[1764566486950,0.4718,2817.4,2817.3,3.54949774]
[1764566487119,0.4718,2817.4,2817.3,4.25940914]
[1764566488547,0.4525,2817.6,2817.3,7.80890688]
[1764566488746,0.002,2817.7,2817.3,11.35940462]
[1764566489121,0.4985,2817.7,2817.3,7.80990688]
[1764566489451,0.002,2817.7,2817.3,7.80990688]
[1764566489650,0.002,2817.7,2817.4,0.78099069]
[1764566489835,0.4985,2817.7,2817.4,0.78099069]
[1764566490042,0.4764,2817.5,2817.4,0.78099069]
[1764566490555,0.4764,2817.5,2817.4,4.33036245]
[1764566491620,0.4985,2817.7,2817.4,7.87973421]
[1764566491851,0.4764,2817.5,2817.4,4.33036245]
[1764566492230,0.9729,2817.5,2817.4,4.33036245]
[1764566492938,0.9729,2817.5,2817.3,3.55041871]
[1764566493136,0.9729,2817.4,2817.3,3.55041871]
[1764566493339,0.9729,2817.4,2817.3,0.001]
[1764566495123,0.227,2817.7,2817.3,0.001]
[1764566495124,0.4985,2817.7,2817.3,0.001]
[1764566496526,0.002,2817.7,2817.3,0.001]
[1764566496726,0.002,2817.7,2817.3,1.15825852]
[1764566497241,0.002,2817.7,2817.4,3.84999998]
[1764566497430,0.002,2817.7,2817.5,0.7434771]
[1764566497631,0.002,2817.7,2817.6,4.98109809]
[1764566498037,0.002,2817.7,2817.6,1.13109811]
[1764566498433,0.002,2817.7,2817.6,1.14897795]
[1764566498637,0.002,2817.7,2817.6,4.69809776]
[1764566498954,0.002,2817.7,2817.6,5.52283165]
[1764566499457,0.002,2817.7,2817.6,5.72995181]
[1764566500326,0.002,2817.7,2817.6,5.74783165]
[1764566500526,0.002,2817.7,2817.6,5.52283165]
[1764566500727,0.002,2817.7,2817.6,5.72995181]
[1764566502329,0.002,2817.7,2817.6,5.74783165]
[1764566503855,0.002,2817.7,2817.6,5.72995181]
[1764566504355,0.002,2817.7,2817.6,5.74783165]
[1764566504531,0.002,2817.7,2817.6,5.72995181]
[1764566505959,0.002,2817.8,2817.6,9.29695146]
[1764566506262,0.002,2817.8,2817.7,11.24131586]
[1764566506449,0.002,2818.2,2817.7,11.24131586]
[1764566506653,0.002,2818.2,2818.1,13.5051867]
[1764566506958,0.002,2818.2,2818.1,13.7301867]
[1764566507136,0.002,2818.2,2818.1,13.3246827]
[1764566507462,0.002,2818.2,2818.1,14.97862043]
[1764566509955,0.002,2818.2,2818.1,5.92802195]
[1764566509956,0.4784,2818.2,2818.1,5.92802195]
[1764566510140,0.9749,2818.2,2818.1,5.52251795]
[1764566510551,0.9749,2818.2,2818.1,5.54038205]
[1764566510746,0.9749,2818.2,2818.1,5.52251795]
[1764566511965,0.002,2818.2,2818.1,9.39038203]
[1764566512158,0.002,2818.2,2818.1,9.37251793]
[1764566512867,0.002,2818.2,2818.1,9.77802193]
[1764566513360,0.9413,2818.2,2818.1,9.37251793]
[1764566514136,0.4807,2818.2,2818.1,9.37251793]
[1764566514561,0.9413,2818.2,2818.1,9.37251793]
[1764566514765,0.9413,2818.2,2818.1,7.7920642]
[1764566515338,0.002,2818.2,2818.1,7.7920642]
[1764566516361,0.9413,2818.2,2818.1,7.7920642]
[1764566516764,0.002,2818.2,2818.1,7.39849009]
[1764566516964,0.4807,2818.2,2818.1,7.39849009]
[1764566517158,0.9413,2818.2,2818.1,7.39849009]
[1764566518567,0.9413,2818.2,2818.1,3.84999998]
[1764566520071,0.9413,2818.2,2818.1,7.41635419]
[1764566520371,0.9413,2818.2,2818.1,7.39849009]
[1764566520668,0.4807,2818.2,2818.1,7.39849009]
[1764566520870,0.4807,2818.2,2818.1,3.54849011]
[1764566521169,0.9413,2818.2,2818.0,7.09722346]
[1764566521341,0.9393,2818.1,2818.0,3.54860743]
[1764566522466,0.9393,2818.1,2817.9,3.84999998]
[1764566522771,0.9393,2818.0,2817.9,7.39871889]
[1764566524069,0.002,2818.2,2817.9,10.94746086]
[1764566524241,0.002,2818.2,2818.0,0.74346135]
[1764566524549,0.4626,2818.2,2818.0,0.72559411]
[1764566524867,0.002,2818.2,2818.0,0.72559411]
[1764566525182,0.002,2818.2,2818.1,4.29194956]
[1764566525685,0.002,2818.2,2818.1,4.27408422]
[1764566526483,0.9413,2818.2,2818.1,4.27408422]
[1764566526781,0.9413,2818.2,2818.1,8.1240842]
[1764566526984,0.4807,2818.2,2818.1,8.1240842]
[1764566527659,0.002,2818.2,2818.1,9.29145326]
[1764566529870,0.4807,2818.2,2818.1,9.29145326]
[1764566530370,0.002,2818.2,2818.1,9.29145326]
[1764566530678,0.9413,2818.2,2818.1,9.29145326]
[1764566530896,0.9413,2818.2,2818.1,8.1240842]
[1764566532052,0.4807,2818.2,2818.1,8.1240842]
[1764566532252,0.002,2818.2,2818.1,8.1240842]
[1764566536974,0.9413,2818.2,2818.1,8.1240842]
[1764566537178,0.4807,2818.2,2818.1,8.1240842]
[1764566537486,0.4807,2818.2,2818.1,9.29145326]
[1764566539085,0.9413,2818.2,2818.1,9.29145326]
[1764566539457,0.9413,2818.2,2818.1,3.84999998]
[1764566541585,0.9413,2818.2,2818.0,3.84999998]
[1764566541786,0.9393,2818.1,2818.0,7.39861601]
[1764566541987,0.9393,2818.1,2818.0,14.01776122]
[1764566542774,0.002,2818.2,2818.0,17.56637725]
[1764566542972,0.002,2818.2,2818.1,2.11161106]
[1764566543367,0.002,2818.2,2818.1,2.83720517]
[1764566543699,0.002,2818.2,2818.1,13.30635036]
[1764566544300,0.002,2818.2,2818.1,16.85484047]
[1764566545995,0.002,2818.2,2818.1,17.48534447]
[1764566547895,0.002,2818.5,2818.1,24.58232469]
[1764566548068,0.002,2818.5,2818.4,7.75024332]
[1764566548393,0.002,2818.5,2818.4,14.36938853]
[1764566549267,0.002,2818.9,2818.5,1.13109811]
[1764566549467,0.002,2818.9,2818.8,14.36938853]
[1764566549874,0.002,2818.9,2818.8,17.91699744]
[1764566550074,0.002,2818.9,2818.8,20.0286085]
[1764566550291,0.002,2818.9,2818.8,20.7398338]
[1764566550502,0.002,2818.9,2818.8,15.60570622]
[1764566550813,0.458,2818.9,2818.8,7.50154338]
[1764566551007,0.458,2818.9,2818.8,7.09603938]
[1764566551306,0.002,2818.9,2818.8,15.20020222]
[1764566551470,0.002,2818.9,2818.8,15.60570622]
[1764566553108,0.002,2818.9,2818.8,15.83070622]
[1764566554783,0.002,2818.9,2818.8,19.6807062]
[1764566557197,0.4675,2818.9,2818.8,19.4557062]
[1764566557501,0.4675,2818.9,2818.8,19.6807062]
[1764566558300,0.002,2818.9,2818.8,19.6807062]
[1764566561069,0.002,2818.9,2818.8,19.4557062]
[1764566561276,0.002,2818.9,2818.8,19.6807062]
[1764566562607,0.4675,2818.9,2818.8,19.6807062]
[1764566564104,0.002,2818.9,2818.8,19.6807062]
[1764566566133,0.002,2819.2,2819.1,0.405504]
[1764566566322,0.002,2819.2,2819.1,13.12093995]
[1764566566617,0.002,2819.5,2819.4,9.23526095]
[1764566566787,0.002,2819.5,2819.4,9.46026095]
[1764566568323,0.002,2819.5,2819.4,9.23526095]
[1764566568502,0.002,2819.5,2819.4,13.00711489]
[1764566568704,0.002,2819.5,2819.4,14.66252435]
[1764566569384,0.1818,2820.0,2819.5,0.72559411]
[1764566569707,0.002,2820.1,2819.7,9.23526095]
[1764566570502,0.002,2820.1,2819.7,12.78173752]
[1764566571788,0.002,2820.1,2819.7,16.6297375]
[1764566571985,0.002,2820.1,2819.7,18.64737093]
[1764566572185,0.4675,2819.8,2819.7,18.64737093]
[1764566572578,0.002,2819.8,2819.7,18.64737093]
[1764566573005,0.4769,2819.8,2819.7,18.64737093]
[1764566573424,0.002,2819.8,2819.7,18.64737093]
[1764566573622,0.002,2820.1,2819.9,0.405504]
[1764566573916,0.002,2820.1,2820.0,9.23526095]
[1764566574116,0.002,2820.1,2820.0,0.72559411]
[1764566574322,0.4769,2820.1,2820.0,0.72559411]
[1764566574487,0.9579,2820.1,2820.0,0.72559411]
[1764566574682,0.9579,2820.1,2820.0,4.2716934]
[1764566576437,0.9579,2820.1,2820.0,10.88078262]
[1764566577797,0.9579,2820.1,2820.0,12.32348264]
[1764566577999,0.9579,2820.1,2820.0,10.88078262]
[1764566580634,0.002,2820.1,2820.0,17.48987184]
[1764566581129,0.9579,2820.1,2820.0,10.88078262]
[1764566581599,0.9579,2820.1,2820.0,4.2716934]
[1764566581942,0.9579,2820.1,2820.0,10.88078262]
[1764566583338,0.9579,2820.1,2820.0,14.7287826]
[1764566584442,0.9579,2820.1,2819.8,3.84799998]
[1764566584611,0.481,2820.0,2819.8,10.4570892]
[1764566584812,0.6714,2819.9,2819.8,10.4570892]
[1764566585106,0.6714,2819.9,2819.8,14.72903411]
[1764566585333,1.1524,2819.9,2819.8,17.21749302]
[1764566585534,0.6714,2819.9,2819.8,17.21749302]
[1764566585726,1.1524,2819.9,2819.8,17.21749302]
[1764566586110,1.1524,2819.9,2819.8,8.11994489]
[1764566586533,0.6714,2819.9,2819.8,8.52544889]
[1764566586741,0.6714,2819.9,2819.8,14.72903411]
[1764566588411,0.6714,2819.9,2819.8,8.11994489]
[1764566589308,0.4749,2819.9,2819.8,8.11994489]
[1764566589511,0.483,2820.1,2819.9,0.72559411]
[1764566589726,0.483,2820.1,2820.0,0.01780558]
[1764566590646,0.9579,2820.1,2820.0,0.01780558]
[1764566591142,0.9579,2820.1,2819.9,0.72559411]
[1764566591348,0.002,2820.1,2820.0,3.54609929]
[1764566591812,0.9579,2820.1,2820.0,3.54609929]
[1764566592150,0.9579,2820.1,2820.0,7.39409927]
[1764566594070,0.35335594,2820.0,2819.5,0.001]
[1764566594351,0.6714,2819.6,2819.5,0.001]
[1764566594720,1.1524,2819.6,2819.5,0.001]
[1764566595561,5.05235829,2819.6,2819.5,0.001]
[1764566596054,5.27735829,2819.6,2819.5,0.001]
[1764566597622,8.4706047,2819.6,2819.2,0.001]
[1764566597853,0.82825594,2819.3,2819.2,0.001]
[1764566598234,1.30925594,2819.3,2819.2,0.001]
[1764566599622,4.85623568,2819.3,2819.2,0.001]
[1764566599828,1.30925594,2819.3,2819.2,0.001]
[1764566601461,0.9559,2819.3,2819.2,0.001]
[1764566602245,1.44151409,2819.3,2819.2,0.001]
[1764566602465,1.79487003,2819.3,2819.2,0.001]
[1764566602757,2.01987003,2819.3,2819.2,0.001]
[1764566603361,5.56684977,2819.3,2819.2,0.001]
[1764566604567,2.01987003,2819.3,2819.2,0.001]
[1764566605364,1.44151409,2819.3,2819.2,0.001]
[1764566605669,1.1513,2819.3,2819.2,0.001]
[1764566606053,4.69827974,2819.3,2819.2,0.001]
[1764566606293,0.35335594,2819.2,2818.9,0.001]
[1764566606590,0.84895594,2819.0,2818.9,0.001]
[1764566606889,0.4956,2819.0,2818.9,0.001]
[1764566607089,1.30035594,2819.0,2818.9,0.001]
[1764566607458,4.84771315,2819.0,2818.9,0.001]
[1764566607659,5.69164232,2819.0,2818.9,0.001]
[1764566609082,5.73598428,2819.0,2818.9,0.001]
[1764566609259,12.47734276,2819.0,2818.5,0.001]
[1764566609463,1.04395594,2818.6,2818.5,0.001]
[1764566609781,0.9156,2818.6,2818.5,0.001]
[1764566609994,1.367,2818.6,2818.5,0.001]
[1764566612105,0.9156,2818.6,2818.5,0.001]
[1764566612809,1.72035594,2818.6,2818.5,0.001]
[1764566612985,1.367,2818.6,2818.5,0.001]
[1764566613507,1.89380057,2818.6,2818.5,0.001]
[1764566614074,1.72035594,2818.6,2818.5,0.001]
[1764566615116,0.9156,2818.6,2818.5,0.001]
[1764566615418,0.195,2818.9,2818.5,0.001]
[1764566615586,0.4956,2818.6,2818.5,0.001]
[1764566616689,0.7206,2818.6,2818.5,0.001]
[1764566617207,0.195,2818.9,2818.5,0.001]
[1764566617208,0.225,2818.7,2818.5,0.001]
[1764566618786,0.225,2818.7,2818.5,3.84899998]
[1764566619717,0.225,2818.7,2818.6,3.54786064]
[1764566620124,0.7206,2818.7,2818.6,3.54786064]
[1764566622417,1.172,2818.7,2818.5,3.84899998]
[1764566622713,0.947,2818.6,2818.5,3.84899998]
[1764566622917,0.947,2818.6,2818.5,7.39698649]
[1764566625189,0.225,2818.7,2818.5,7.39698649]
[1764566625509,0.4956,2818.6,2818.5,7.39698649]
[1764566625886,0.947,2818.6,2818.5,3.84899998]
[1764566627318,0.947,2818.6,2818.5,7.39698649]
[1764566627524,0.947,2818.6,2818.5,3.84899998]
[1764566627692,1.30035594,2818.6,2818.5,3.84899998]
[1764566628225,0.947,2818.6,2818.5,3.84899998]
[1764566628412,1.30035594,2818.6,2818.5,3.84899998]
[1764566628614,0.947,2818.6,2818.5,3.84899998]
[1764566629420,1.45873298,2818.6,2818.5,3.84899998]
[1764566629620,1.30035594,2818.6,2818.5,3.84899998]
[1764566630820,1.30035594,2818.6,2818.5,0.001]
[1764566632700,0.947,2818.6,2818.5,0.001]
[1764566635827,0.99134825,2818.6,2818.5,0.001]
[1764566636032,4.53920889,2818.6,2818.5,0.001]
[1764566636220,5.36898572,2818.6,2818.5,0.001]
[1764566639533,1.69276914,2818.6,2818.5,0.001]
[1764566639742,5.59398572,2818.6,2818.5,0.001]
[1764566643854,0.92900226,2819.8,2818.5,0.001]
[1764566644158,0.002,2820.8,2818.5,0.001]
[1764566644159,0.1951,2821.9,2819.8,13.668967]
[1764566644314,0.1951,2821.9,2821.0,8.79274627]
[1764566644509,0.1951,2821.9,2821.0,15.51731649]
[1764566644732,3.73881168,2821.9,2821.0,9.51834038]
[1764566644922,0.4992,2821.1,2820.7,3.54521927]
[1764566645123,0.002,2821.1,2820.5,3.54547066]
[1764566645344,0.002,2821.1,2820.5,7.09094132]
[1764566646122,0.35364028,2821.0,2820.5,7.09094132]
[1764566646711,0.35364028,2821.0,2820.4,7.09119272]
[1764566646939,0.1951,2820.9,2820.4,7.09119272]
[1764566647151,0.02649864,2820.8,2820.3,3.54572031]
[1764566647318,0.1951,2820.9,2820.3,3.54572031]
[1764566647645,0.35364028,2820.8,2820.3,3.54572031]
[1764566647845,0.35364028,2820.8,2820.3,7.09144239]
[1764566648620,0.1951,2820.9,2820.3,3.54572031]
[1764566648824,0.1951,2820.9,2820.2,7.81728973]
[1764566649140,0.02649864,2820.8,2820.2,4.27144192]
[1764566649649,0.49139864,2820.8,2819.9,2.43093735]
[1764566649821,0.4972,2820.3,2819.8,0.72559411]
[1764566650007,0.02649864,2820.2,2819.7,7.09292446]
[1764566650416,0.02649864,2820.2,2819.8,0.72559411]
[1764566650643,0.226,2820.4,2820.0,8.10066898]
[1764566650815,0.226,2820.4,2819.8,2.31751287]
[1764566650816,0.25249864,2820.8,2820.3,8.10066898]
[1764566651125,0.60613892,2820.8,2820.1,8.10066898]
[1764566651326,0.35364028,2820.7,2820.1,8.10066898]
[1764566651525,0.02649864,2820.6,2820.1,8.10066898]
[1764566652046,0.49139864,2820.6,2820.1,8.10066898]
[1764566653154,0.49139864,2820.6,2820.2,3.54584781]
[1764566656556,0.02649864,2820.6,2820.2,7.12715409]
[1764566656754,0.4972,2820.3,2820.2,3.54584781]
[1764566657156,0.4972,2820.3,2820.1,0.72559411]
[1764566657939,0.4972,2820.3,2820.2,0.72559411]
[1764566658139,0.49139864,2820.5,2820.2,0.72559411]
[1764566658863,0.4972,2820.3,2820.2,0.72559411]
[1764566659566,0.4649,2820.5,2820.2,0.72559411]
[1764566659728,0.81854028,2820.5,2820.2,4.27138165]
[1764566660168,0.4649,2820.5,2820.2,3.54578754]
[1764566660464,0.49139864,2820.5,2820.2,3.54578754]
[1764566662575,0.4972,2820.3,2820.2,3.54578754]
[1764566665860,0.9794,2820.3,2820.2,3.54578754]
[1764566666251,0.4972,2820.3,2820.2,3.54578754]
[1764566666656,0.4822,2820.5,2820.2,3.54578754]
[1764566667276,0.228,2820.8,2820.3,8.10066898]
[1764566667472,0.25449864,2820.8,2820.3,8.10066898]
[1764566668172,0.25449864,2820.8,2820.4,3.54559636]
[1764566668364,0.25449864,2820.8,2820.3,3.54566099]
[1764566668365,0.73669864,2820.8,2820.3,3.54566099]
[1764566668567,0.73669864,2820.8,2820.3,7.09138307]
[1764566668763,0.4822,2820.7,2820.3,8.33791119]
[1764566668960,0.25449864,2820.8,2820.3,8.33791119]
[1764566669175,0.25449864,2820.8,2820.3,16.43858017]
[1764566669580,0.228,2820.8,2820.3,16.43858017]
[1764566669956,0.228,2820.8,2820.4,0.7592441]
[1764566670159,0.228,2820.8,2820.4,2.20415452]
[1764566671175,0.228,2820.8,2820.5,7.8510466]
[1764566671347,0.228,2820.8,2820.5,7.09094132]
[1764566671550,0.228,2820.8,2820.6,8.86082198]
[1764566671865,0.228,2820.8,2820.7,0.760153]
[1764566672173,0.002,2820.8,2820.7,6.13305115]
[1764566673169,0.002,2820.8,2820.7,11.57855025]
[1764566673879,0.002,2820.8,2820.7,7.72855025]
[1764566676477,0.732,2820.8,2820.7,5.82827042]
[1764566677280,0.732,2820.8,2820.7,7.73527803]
[1764566678083,0.732,2820.8,2820.7,5.82827042]
[1764566678272,0.732,2820.8,2820.7,7.73532611]
[1764566678671,0.732,2820.8,2820.7,5.82827042]
[1764566678866,0.732,2820.8,2820.7,7.73532611]
[1764566680166,0.732,2820.8,2820.7,5.82827042]
[1764566680594,1.6785,2820.8,2820.7,0.760153]